[Event "*** Titled Tuesday Blitz"]
[Site "Chess.com"]
[Date "2020.12.29"]
[Round "3"]
[White "SCIM"]
[Black "Marianov_Podstavnikov"]
[Result "1/2-1/2"]
[WhiteElo "2422"]
[BlackElo "2254"]
[TimeControl "180+1"]
[EndTime "10:29:43 PST"]
[Termination "Game drawn by stalemate"]

1. d4 {[%clk 0:03:00.9]} 1... Nf6 {[%clk 0:03:00.2]} 2. c4 {[%clk 0:03:00.1]}
2... e6 {[%clk 0:03:00.4]} 3. Nf3 {[%clk 0:03:00.4]} 3... d5 {[%clk 0:02:58.2]}
4. g3 {[%clk 0:03:00.1]} 4... Be7 {[%clk 0:02:56.4]} 5. Bg2 {[%clk 0:03:00.2]}
5... O-O {[%clk 0:02:56.5]} 6. O-O {[%clk 0:02:59.9]} 6... dxc4 {[%clk
0:02:54.3]} 7. Qc2 {[%clk 0:02:58.5]} 7... a6 {[%clk 0:02:54.2]} 8. a4 {[%clk
0:02:53.4]} 8... Bd7 {[%clk 0:02:48.8]} 9. Ne5 {[%clk 0:02:49]} 9... Bc6 {[%clk
0:02:34]} 10. Nxc6 {[%clk 0:02:48.6]} 10... Nxc6 {[%clk 0:02:34.2]} 11. e3
{[%clk 0:02:47.7]} 11... Na5 {[%clk 0:02:31.7]} 12. Nd2 {[%clk 0:02:45.9]} 12...
c5 {[%clk 0:02:21.3]} 13. Nxc4 {[%clk 0:02:40.1]} 13... cxd4 {[%clk 0:02:15.4]}
14. Nxa5 {[%clk 0:02:38.1]} 14... Qxa5 {[%clk 0:02:14.8]} 15. exd4 {[%clk
0:02:38]} 15... Rac8 {[%clk 0:02:11.7]} 16. Qb3 {[%clk 0:02:30.4]} 16... Nd5
{[%clk 0:02:05.5]} 17. h4 {[%clk 0:02:10.5]} 17... Bf6 {[%clk 0:01:54.4]} 18.
Rd1 {[%clk 0:02:06.2]} 18... Rfd8 {[%clk 0:01:41.2]} 19. Bd2 {[%clk 0:02:05.8]}
19... Qc7 {[%clk 0:01:32.3]} 20. Rac1 {[%clk 0:02:04.1]} 20... Qd7 {[%clk
0:01:32.4]} 21. Ba5 {[%clk 0:01:52.1]} 21... Rxc1 {[%clk 0:01:10.3]} 22. Rxc1
{[%clk 0:01:49.8]} 22... b6 {[%clk 0:01:10.5]} 23. Bc3 {[%clk 0:01:38]} 23... b5
{[%clk 0:01:05.9]} 24. axb5 {[%clk 0:01:35.9]} 24... axb5 {[%clk 0:01:00.7]} 25.
Ra1 {[%clk 0:01:26.4]} 25... b4 {[%clk 0:00:48.9]} 26. Bxb4 {[%clk 0:01:25.4]}
26... Nxb4 {[%clk 0:00:44.6]} 27. Qxb4 {[%clk 0:01:24.3]} 27... Qxd4 {[%clk
0:00:44.3]} 28. Qxd4 {[%clk 0:01:17.3]} 28... Bxd4 {[%clk 0:00:45.2]} 29. Ra2
{[%clk 0:01:11.9]} 29... Rb8 {[%clk 0:00:44.3]} 30. b4 {[%clk 0:00:59.5]} 30...
Kf8 {[%clk 0:00:31.9]} 31. Ra8 {[%clk 0:00:49.4]} 31... Rxa8 {[%clk 0:00:29.4]}
32. Bxa8 {[%clk 0:00:50.3]} 32... Ke7 {[%clk 0:00:17.5]} 33. b5 {[%clk
0:00:50.9]} 33... Kd6 {[%clk 0:00:16.7]} 34. Kg2 {[%clk 0:00:51.3]} 34... f5
{[%clk 0:00:13.9]} 35. Bf3 {[%clk 0:00:46.5]} 35... g6 {[%clk 0:00:13.7]} 36.
Be2 {[%clk 0:00:43.5]} 36... h6 {[%clk 0:00:13.8]} 37. Kf1 {[%clk 0:00:38.1]}
37... g5 {[%clk 0:00:13.6]} 38. h5 {[%clk 0:00:37.6]} 38... e5 {[%clk
0:00:13.9]} 39. g4 {[%clk 0:00:33.5]} 39... fxg4 {[%clk 0:00:10.4]} 40. Bxg4
{[%clk 0:00:34.4]} 40... e4 {[%clk 0:00:10.9]} 41. Ke2 {[%clk 0:00:33]} 41...
Ke5 {[%clk 0:00:10.4]} 42. Bc8 {[%clk 0:00:30.1]} 42... Kf4 {[%clk 0:00:10.5]}
43. Bb7 {[%clk 0:00:28]} 43... g4 {[%clk 0:00:10.4]} 44. Bc6 {[%clk 0:00:25.9]}
44... Bb6 {[%clk 0:00:10.4]} 45. Bd5 {[%clk 0:00:23.8]} 45... Bc5 {[%clk
0:00:10.5]} 46. Ke1 {[%clk 0:00:19.3]} 46... Bb6 {[%clk 0:00:10.6]} 47. Kf1
{[%clk 0:00:16]} 47... Kf3 {[%clk 0:00:10.8]} 48. Bc6 {[%clk 0:00:15]} 48... Bc5
{[%clk 0:00:11]} 49. Bb7 {[%clk 0:00:13.7]} 49... Bb6 {[%clk 0:00:11.2]} 50. Bc6
{[%clk 0:00:13.2]} 50... Bxf2 {[%clk 0:00:11.3]} 51. Bxe4+ {[%clk 0:00:13]}
51... Kg3 {[%clk 0:00:11.6]} 52. Bg6 {[%clk 0:00:10.4]} 52... Bb6 {[%clk
0:00:10.8]} 53. Be4 {[%clk 0:00:10.3]} 53... Kh3 {[%clk 0:00:10.6]} 54. Bf5
{[%clk 0:00:08.8]} 54... Kg3 {[%clk 0:00:10.3]} 55. Bxg4 {[%clk 0:00:07.4]}
55... Kxg4 {[%clk 0:00:10.3]} 56. Kg2 {[%clk 0:00:08.3]} 56... Kxh5 {[%clk
0:00:10.8]} 57. Kh1 {[%clk 0:00:09.2]} 57... Kg5 {[%clk 0:00:11.6]} 58. Kg2
{[%clk 0:00:09.8]} 58... h5 {[%clk 0:00:12.5]} 59. Kh1 {[%clk 0:00:10.7]} 59...
h4 {[%clk 0:00:13.4]} 60. Kg2 {[%clk 0:00:11.6]} 60... Kg4 {[%clk 0:00:13.6]}
61. Kh1 {[%clk 0:00:12.5]} 61... h3 {[%clk 0:00:14]} 62. Kh2 {[%clk 0:00:11.6]}
62... Kh4 {[%clk 0:00:12.8]} 63. Kh1 {[%clk 0:00:12.5]} 63... Kg4 {[%clk
0:00:12.5]} 64. Kh2 {[%clk 0:00:13.4]} 64... Bc7+ {[%clk 0:00:12.7]} 65. Kh1
{[%clk 0:00:14.3]} 65... Kg3 {[%clk 0:00:11.5]} 66. b6 {[%clk 0:00:15.2]} 66...
Bb8 {[%clk 0:00:10.9]} 67. b7 {[%clk 0:00:14.5]} 67... h2 {[%clk 0:00:10.5]}
1/2-1/2

[Event "*** Titled Tuesday Blitz"]
[Site "Chess.com"]
[Date "2020.12.29"]
[Round "3"]
[White "amintabatabaei"]
[Black "Bulldog167"]
[Result "1-0"]
[WhiteElo "2915"]
[BlackElo "2684"]
[TimeControl "180+1"]
[EndTime "10:29:44 PST"]
[Termination "amintabatabaei won on time"]

1. d4 {[%clk 0:03:00.9]} 1... Nf6 {[%clk 0:02:59.6]} 2. Nf3 {[%clk 0:03:00.7]}
2... d5 {[%clk 0:02:59.2]} 3. Bf4 {[%clk 0:03:01.2]} 3... e6 {[%clk 0:02:58.5]}
4. e3 {[%clk 0:03:01.6]} 4... Bd6 {[%clk 0:02:58.4]} 5. Nbd2 {[%clk 0:02:55.5]}
5... O-O {[%clk 0:02:56.1]} 6. c3 {[%clk 0:02:54.1]} 6... b6 {[%clk 0:02:53]} 7.
Ne5 {[%clk 0:02:53.3]} 7... Bb7 {[%clk 0:02:45.6]} 8. h4 {[%clk 0:02:47.9]} 8...
Ne4 {[%clk 0:02:37.1]} 9. Nxe4 {[%clk 0:02:39.3]} 9... dxe4 {[%clk 0:02:31.4]}
10. h5 {[%clk 0:02:39.9]} 10... Nd7 {[%clk 0:02:18.1]} 11. Qg4 {[%clk 0:02:29]}
11... f5 {[%clk 0:01:38.7]} 12. Qg3 {[%clk 0:02:27]} 12... Nxe5 {[%clk
0:01:37.7]} 13. dxe5 {[%clk 0:02:20.8]} 13... Be7 {[%clk 0:01:31.4]} 14. Bc4
{[%clk 0:02:21.2]} 14... Bd5 {[%clk 0:01:30.4]} 15. O-O-O {[%clk 0:02:08.8]}
15... Bxc4 {[%clk 0:01:17.1]} 16. Rxd8 {[%clk 0:02:09.4]} 16... Raxd8 {[%clk
0:01:18]} 17. h6 {[%clk 0:02:07.3]} 17... g6 {[%clk 0:01:15.1]} 18. Bg5 {[%clk
0:02:08]} 18... Bxg5 {[%clk 0:01:12.9]} 19. Qxg5 {[%clk 0:02:08.9]} 19... Bxa2
{[%clk 0:01:13]} 20. Rd1 {[%clk 0:02:09.5]} 20... Rxd1+ {[%clk 0:00:57.3]} 21.
Kxd1 {[%clk 0:02:10.4]} 21... Kf7 {[%clk 0:00:53.9]} 22. Kc2 {[%clk 0:02:06.2]}
22... Bd5 {[%clk 0:00:43.3]} 23. b3 {[%clk 0:02:00.9]} 23... Ke8 {[%clk
0:00:38.2]} 24. c4 {[%clk 0:02:00]} 24... Bc6 {[%clk 0:00:38.5]} 25. Kc3 {[%clk
0:01:57.2]} 25... a5 {[%clk 0:00:38.6]} 26. Qh4 {[%clk 0:01:57.1]} 26... Kd7
{[%clk 0:00:37.2]} 27. Qh1 {[%clk 0:01:49.3]} 27... Kc8 {[%clk 0:00:36.7]} 28.
Qh4 {[%clk 0:01:47.6]} 28... Kd7 {[%clk 0:00:36.1]} 29. Kd2 {[%clk 0:01:40.8]}
29... Rf7 {[%clk 0:00:33.1]} 30. Ke1 {[%clk 0:01:40.5]} 30... Rf8 {[%clk
0:00:33.3]} 31. Kf1 {[%clk 0:01:40.6]} 31... a4 {[%clk 0:00:30]} 32. bxa4 {[%clk
0:01:40.6]} 32... Bxa4 {[%clk 0:00:30.9]} 33. Ke1 {[%clk 0:01:36.6]} 33... Bb3
{[%clk 0:00:29.8]} 34. c5 {[%clk 0:01:37.2]} 34... bxc5 {[%clk 0:00:29.9]} 35.
Kd2 {[%clk 0:01:37.1]} 35... Bd5 {[%clk 0:00:28.2]} 36. Kc3 {[%clk 0:01:37.6]}
36... Rf7 {[%clk 0:00:27.5]} 37. Qh1 {[%clk 0:01:36.9]} 37... Rf8 {[%clk
0:00:20.4]} 38. Qb1 {[%clk 0:01:37.5]} 38... Ra8 {[%clk 0:00:18.4]} 39. Qb5+
{[%clk 0:01:37.8]} 39... Bc6 {[%clk 0:00:15]} 40. Qxc5 {[%clk 0:01:38.3]} 40...
Rb8 {[%clk 0:00:13.4]} 41. Kd2 {[%clk 0:01:26.8]} 41... Rb2+ {[%clk 0:00:12]}
42. Kc1 {[%clk 0:01:27.1]} 42... Rb8 {[%clk 0:00:11.7]} 43. Kc2 {[%clk 0:01:23]}
43... Bd5 {[%clk 0:00:10.6]} 44. Qa3 {[%clk 0:01:12]} 44... Bb3+ {[%clk
0:00:09.1]} 45. Kd2 {[%clk 0:01:12.2]} 45... Bd5 {[%clk 0:00:10]} 46. Ke2 {[%clk
0:00:51.6]} 46... Ra8 {[%clk 0:00:09.4]} 47. Qc5 {[%clk 0:00:49.6]} 47... Ra2+
{[%clk 0:00:09.7]} 48. Ke1 {[%clk 0:00:49.8]} 48... Ra1+ {[%clk 0:00:10.2]} 49.
Kd2 {[%clk 0:00:50.3]} 49... Ra2+ {[%clk 0:00:10.7]} 50. Kc3 {[%clk 0:00:49.5]}
50... Ra8 {[%clk 0:00:08.3]} 51. Qb4 {[%clk 0:00:35.4]} 51... Rc8 {[%clk
0:00:07.4]} 52. Qa4+ {[%clk 0:00:23.2]} 52... Bc6 {[%clk 0:00:07]} 53. Qd4+
{[%clk 0:00:23.9]} 53... Bd5 {[%clk 0:00:07.5]} 54. f4 {[%clk 0:00:24.3]} 54...
Rb8 {[%clk 0:00:07]} 55. Qc5 {[%clk 0:00:21.7]} 55... Rb3+ {[%clk 0:00:06.6]}
56. Kd2 {[%clk 0:00:21.7]} 56... Rb2+ {[%clk 0:00:07]} 57. Ke1 {[%clk
0:00:21.3]} 57... Rb8 {[%clk 0:00:07.1]} 58. Kf2 {[%clk 0:00:21.4]} 58... Rb2+
{[%clk 0:00:06.1]} 59. Kg3 {[%clk 0:00:21.2]} 59... Rb8 {[%clk 0:00:07]} 60. Kh4
{[%clk 0:00:21.4]} 60... Ke8 {[%clk 0:00:02.6]} 61. Kg5 {[%clk 0:00:18.6]} 61...
c6 {[%clk 0:00:01.7]} 62. Qa7 {[%clk 0:00:14.8]} 62... Rc8 {[%clk 0:00:01.1]}
63. Kf6 {[%clk 0:00:14.4]} 1-0

[Event "*** Titled Tuesday Blitz"]
[Site "Chess.com"]
[Date "2020.12.29"]
[Round "3"]
[White "Karateloru"]
[Black "GM_LOADING"]
[Result "1-0"]
[WhiteElo "2752"]
[BlackElo "2501"]
[TimeControl "180+1"]
[EndTime "10:29:46 PST"]
[Termination "Karateloru won on time"]

1. Nf3 {[%clk 0:03:00.9]} 1... Nf6 {[%clk 0:02:58.6]} 2. c4 {[%clk 0:03:01]}
2... e6 {[%clk 0:02:58.6]} 3. Nc3 {[%clk 0:03:00.8]} 3... d5 {[%clk 0:02:57.9]}
4. d4 {[%clk 0:03:00.9]} 4... c6 {[%clk 0:02:57.8]} 5. e3 {[%clk 0:02:59]} 5...
Nbd7 {[%clk 0:02:57.7]} 6. b3 {[%clk 0:02:55.3]} 6... Bd6 {[%clk 0:02:53.4]} 7.
Bb2 {[%clk 0:02:54.6]} 7... O-O {[%clk 0:02:53.4]} 8. Be2 {[%clk 0:02:53.5]}
8... b6 {[%clk 0:02:53.3]} 9. O-O {[%clk 0:02:53]} 9... Bb7 {[%clk 0:02:53]} 10.
Rc1 {[%clk 0:02:51.5]} 10... Qe7 {[%clk 0:02:50.7]} 11. Bd3 {[%clk 0:02:49.1]}
11... Rad8 {[%clk 0:02:34.3]} 12. e4 {[%clk 0:02:48.2]} 12... dxe4 {[%clk
0:02:33.6]} 13. Nxe4 {[%clk 0:02:49.1]} 13... Nxe4 {[%clk 0:02:34.5]} 14. Bxe4
{[%clk 0:02:50]} 14... Nf6 {[%clk 0:02:35.1]} 15. Bb1 {[%clk 0:02:46]} 15... c5
{[%clk 0:02:15.4]} 16. d5 {[%clk 0:02:28.2]} 16... exd5 {[%clk 0:02:09.4]} 17.
Re1 {[%clk 0:02:28]} 17... Ne4 {[%clk 0:01:53.2]} 18. cxd5 {[%clk 0:02:22.9]}
18... f5 {[%clk 0:01:48.1]} 19. h3 {[%clk 0:01:53.1]} 19... Qf7 {[%clk
0:01:07.3]} 20. Rxe4 {[%clk 0:01:44.2]} 20... fxe4 {[%clk 0:01:08.2]} 21. Bxe4
{[%clk 0:01:44.6]} 21... Rde8 {[%clk 0:00:55]} 22. Ng5 {[%clk 0:01:15.6]} 22...
Qxf2+ {[%clk 0:00:53.1]} 23. Kh1 {[%clk 0:01:14.9]} 23... Qg3 {[%clk 0:00:31.3]}
24. Bxh7+ {[%clk 0:01:00.2]} 24... Kh8 {[%clk 0:00:30.9]} 25. Qg1 {[%clk
0:00:59.9]} 25... Qxg5 {[%clk 0:00:28.3]} 26. Bb1 {[%clk 0:00:58.8]} 26... Re2
{[%clk 0:00:22.3]} 27. Rc4 {[%clk 0:00:57.4]} 27... Bxd5 {[%clk 0:00:15.1]} 28.
Rg4 {[%clk 0:00:57.2]} 28... Bxg2+ {[%clk 0:00:08.4]} 29. Rxg2 {[%clk
0:00:52.7]} 29... Qxg2+ {[%clk 0:00:07.9]} 30. Qxg2 {[%clk 0:00:52.8]} 30...
Rxg2 {[%clk 0:00:08.8]} 31. Kxg2 {[%clk 0:00:52.9]} 31... Re8 {[%clk 0:00:09.1]}
32. Kf3 {[%clk 0:00:52.6]} 32... Be5 {[%clk 0:00:09.1]} 33. Bc1 {[%clk
0:00:52.3]} 33... Bd4 {[%clk 0:00:09.4]} 34. Bf4 {[%clk 0:00:51.9]} 34... Re1
{[%clk 0:00:09.1]} 35. Be4 {[%clk 0:00:52]} 35... Ra1 {[%clk 0:00:08.5]} 36. a4
{[%clk 0:00:52.1]} 36... Rf1+ {[%clk 0:00:08.1]} 37. Kg4 {[%clk 0:00:51.8]}
37... Re1 {[%clk 0:00:08.2]} 38. Bd5 {[%clk 0:00:51.8]} 38... Be5 {[%clk
0:00:08.4]} 39. Bd2 {[%clk 0:00:50.1]} 39... Re2 {[%clk 0:00:08.3]} 40. Bg5
{[%clk 0:00:50.1]} 40... Bf6 {[%clk 0:00:08.5]} 41. Bf4 {[%clk 0:00:49.9]} 41...
Rd2 {[%clk 0:00:08.6]} 42. Bc4 {[%clk 0:00:49.6]} 42... Rd4 {[%clk 0:00:08.2]}
43. Kf5 {[%clk 0:00:49.9]} 43... Rd1 {[%clk 0:00:07.2]} 44. Bb8 {[%clk
0:00:47.5]} 44... Rd7 {[%clk 0:00:06.1]} 45. Be6 {[%clk 0:00:46.5]} 45... Re7
{[%clk 0:00:05.8]} 46. Bd6 {[%clk 0:00:46]} 46... Re8 {[%clk 0:00:06]} 47. Bg3
{[%clk 0:00:42.4]} 47... a6 {[%clk 0:00:05.6]} 48. h4 {[%clk 0:00:41.9]} 48...
b5 {[%clk 0:00:05.5]} 49. axb5 {[%clk 0:00:41.4]} 49... axb5 {[%clk 0:00:06.4]}
50. h5 {[%clk 0:00:39]} 50... Kh7 {[%clk 0:00:06.3]} 51. Bf4 {[%clk 0:00:37.4]}
51... Rf8 {[%clk 0:00:05.2]} 52. Ke4 {[%clk 0:00:35.6]} 52... Bd4 {[%clk
0:00:05.2]} 53. Bf5+ {[%clk 0:00:33.7]} 53... Kh8 {[%clk 0:00:04.5]} 54. Bd7
{[%clk 0:00:29]} 54... Rd8 {[%clk 0:00:03.7]} 55. Bxb5 {[%clk 0:00:28.8]} 55...
Rb8 {[%clk 0:00:03.6]} 56. Bc4 {[%clk 0:00:28.6]} 56... Rf8 {[%clk 0:00:04.1]}
57. Bd5 {[%clk 0:00:27.8]} 57... Bg1 {[%clk 0:00:03.7]} 58. Be6 {[%clk
0:00:26.9]} 58... Re8 {[%clk 0:00:03.8]} 59. Kd5 {[%clk 0:00:26.7]} 59... Rd8+
{[%clk 0:00:03.8]} 60. Kc6 {[%clk 0:00:25.8]} 60... Rd4 {[%clk 0:00:04.1]} 61.
Be5 {[%clk 0:00:24.5]} 61... Rh4 {[%clk 0:00:04.4]} 62. Bf7 {[%clk 0:00:24.4]}
62... Bd4 {[%clk 0:00:03.8]} 63. Bd6 {[%clk 0:00:24.2]} 63... Rf4 {[%clk
0:00:03]} 64. Bxf4 {[%clk 0:00:23.5]} 1-0

[Event "*** Titled Tuesday Blitz"]
[Site "Chess.com"]
[Date "2020.12.29"]
[Round "3"]
[White "zmeeed67"]
[Black "davidkalashian"]
[Result "0-1"]
[WhiteElo "2406"]
[BlackElo "2599"]
[TimeControl "180+1"]
[EndTime "10:29:46 PST"]
[Termination "davidkalashian won on time"]

1. e4 {[%clk 0:03:00.9]} 1... c6 {[%clk 0:02:58.5]} 2. d4 {[%clk 0:02:59.9]}
2... g6 {[%clk 0:02:59.4]} 3. Be3 {[%clk 0:02:57.9]} 3... Bg7 {[%clk 0:02:59.5]}
4. Nc3 {[%clk 0:02:55.7]} 4... d6 {[%clk 0:02:56.3]} 5. Qd2 {[%clk 0:02:54.9]}
5... b5 {[%clk 0:02:54.6]} 6. h4 {[%clk 0:02:48]} 6... h5 {[%clk 0:02:51.2]} 7.
f3 {[%clk 0:02:45.9]} 7... Nd7 {[%clk 0:02:45.1]} 8. Nh3 {[%clk 0:02:37]} 8...
Nb6 {[%clk 0:02:44.6]} 9. Ng5 {[%clk 0:02:21.2]} 9... Nf6 {[%clk 0:02:37.4]} 10.
b3 {[%clk 0:02:11.8]} 10... a5 {[%clk 0:02:35.2]} 11. Be2 {[%clk 0:02:07.8]}
11... a4 {[%clk 0:02:34]} 12. Kf2 {[%clk 0:01:58.5]} 12... Bd7 {[%clk 0:02:22]}
13. Rad1 {[%clk 0:01:36.2]} 13... Qc7 {[%clk 0:02:19.3]} 14. d5 {[%clk
0:01:24.5]} 14... cxd5 {[%clk 0:01:59.7]} 15. Nxb5 {[%clk 0:01:23.1]} 15... Qb7
{[%clk 0:01:53.5]} 16. Qb4 {[%clk 0:00:57]} 16... dxe4 {[%clk 0:01:31.2]} 17.
Nxd6+ {[%clk 0:00:55.8]} 17... exd6 {[%clk 0:01:31]} 18. Qxb6 {[%clk 0:00:52.4]}
18... Qxb6 {[%clk 0:01:25.5]} 19. Bxb6 {[%clk 0:00:52.4]} 19... axb3 {[%clk
0:01:25.1]} 20. axb3 {[%clk 0:00:50.2]} 20... d5 {[%clk 0:01:19.1]} 21. Bd4
{[%clk 0:00:46.6]} 21... Bc6 {[%clk 0:01:09.4]} 22. c4 {[%clk 0:00:23.1]} 22...
dxc4 {[%clk 0:01:04.3]} 23. Bxc4 {[%clk 0:00:22.6]} 23... O-O {[%clk 0:00:56.3]}
24. fxe4 {[%clk 0:00:18.4]} 24... Nxe4+ {[%clk 0:00:51.5]} 25. Nxe4 {[%clk
0:00:18.3]} 25... Bxe4 {[%clk 0:00:51.8]} 26. Bxg7 {[%clk 0:00:18.3]} 26... Kxg7
{[%clk 0:00:52.7]} 27. Rd2 {[%clk 0:00:18.6]} 27... Ra5 {[%clk 0:00:38]} 28.
Rhd1 {[%clk 0:00:17.7]} 28... Rf5+ {[%clk 0:00:35.7]} 29. Kg3 {[%clk 0:00:17.5]}
29... Rb8 {[%clk 0:00:31.5]} 30. Rf2 {[%clk 0:00:16.7]} 30... Rb7 {[%clk
0:00:23.3]} 31. Rxf5 {[%clk 0:00:15]} 31... Bxf5 {[%clk 0:00:24.2]} 32. Rf1
{[%clk 0:00:14]} 32... Be4 {[%clk 0:00:22.4]} 33. Rf4 {[%clk 0:00:13.7]} 33...
Bc2 {[%clk 0:00:21.6]} 34. Rf2 {[%clk 0:00:13.5]} 34... Be4 {[%clk 0:00:17.4]}
35. Re2 {[%clk 0:00:11.8]} 35... f5 {[%clk 0:00:16.2]} 36. Kf4 {[%clk
0:00:11.9]} 36... Kf6 {[%clk 0:00:16]} 37. g3 {[%clk 0:00:11.5]} 37... Rd7
{[%clk 0:00:14.5]} 38. Ke3 {[%clk 0:00:11.1]} 38... Rd1 {[%clk 0:00:13.9]} 39.
Rd2 {[%clk 0:00:10.6]} 39... Rg1 {[%clk 0:00:07.6]} 40. Kf2 {[%clk 0:00:09.6]}
40... Rg2+ {[%clk 0:00:07.4]} 41. Ke1 {[%clk 0:00:10]} 41... Rxg3 {[%clk
0:00:07.9]} 42. Rd6+ {[%clk 0:00:10.4]} 42... Ke5 {[%clk 0:00:08.4]} 43. Rb6
{[%clk 0:00:09.2]} 43... Kf4 {[%clk 0:00:08.1]} 44. Kf2 {[%clk 0:00:08.9]} 44...
g5 {[%clk 0:00:07.8]} 45. hxg5 {[%clk 0:00:08.4]} 45... Rg2+ {[%clk 0:00:08.7]}
46. Kf1 {[%clk 0:00:08]} 46... Rxg5 {[%clk 0:00:09.6]} 47. Rh6 {[%clk
0:00:07.8]} 47... Kg4 {[%clk 0:00:09.2]} 48. Be2+ {[%clk 0:00:06.9]} 48... Kh4
{[%clk 0:00:09.2]} 49. b4 {[%clk 0:00:05.5]} 49... f4 {[%clk 0:00:09.1]} 50. b5
{[%clk 0:00:05.2]} 50... f3 {[%clk 0:00:09.4]} 51. Bc4 {[%clk 0:00:04.9]} 51...
Rc5 {[%clk 0:00:08.3]} 52. Bf7 {[%clk 0:00:04.4]} 52... Rxb5 {[%clk 0:00:07.8]}
53. Kf2 {[%clk 0:00:04.5]} 53... Rb2+ {[%clk 0:00:08.1]} 54. Ke3 {[%clk
0:00:04.5]} 54... Bc6 {[%clk 0:00:08]} 55. Rxh5+ {[%clk 0:00:03]} 55... Kg4
{[%clk 0:00:08.9]} 56. Rh7 {[%clk 0:00:01.9]} 56... Re2+ {[%clk 0:00:09.1]} 57.
Kd3 {[%clk 0:00:01.5]} 57... Be4+ {[%clk 0:00:09.3]} 0-1

[Event "*** Titled Tuesday Blitz"]
[Site "Chess.com"]
[Date "2020.12.29"]
[Round "3"]
[White "ShahMatKanal"]
[Black "chessmachine14"]
[Result "1-0"]
[WhiteElo "2425"]
[BlackElo "2238"]
[TimeControl "180+1"]
[EndTime "10:29:50 PST"]
[Termination "ShahMatKanal won by checkmate"]

1. e4 {[%clk 0:03:00.9]} 1... c5 {[%clk 0:02:58]} 2. Nf3 {[%clk 0:02:58.5]} 2...
e6 {[%clk 0:02:57.7]} 3. c4 {[%clk 0:02:55.3]} 3... Nc6 {[%clk 0:02:47]} 4. Nc3
{[%clk 0:02:55.2]} 4... a6 {[%clk 0:02:39]} 5. Be2 {[%clk 0:02:46.4]} 5... Nf6
{[%clk 0:02:35.6]} 6. O-O {[%clk 0:02:45.3]} 6... d6 {[%clk 0:02:32.3]} 7. d4
{[%clk 0:02:44.7]} 7... cxd4 {[%clk 0:02:32]} 8. Nxd4 {[%clk 0:02:45.6]} 8...
Be7 {[%clk 0:02:32.3]} 9. Be3 {[%clk 0:02:42]} 9... O-O {[%clk 0:02:31.5]} 10.
Qd2 {[%clk 0:02:41.9]} 10... Ne5 {[%clk 0:02:31.1]} 11. h3 {[%clk 0:02:38]}
11... Qc7 {[%clk 0:02:23]} 12. Rac1 {[%clk 0:02:34.9]} 12... b6 {[%clk
0:02:21.7]} 13. f4 {[%clk 0:02:30.3]} 13... Ned7 {[%clk 0:02:21.2]} 14. Bf3
{[%clk 0:02:12.3]} 14... Bb7 {[%clk 0:02:21.2]} 15. Nd5 {[%clk 0:02:04.9]} 15...
exd5 {[%clk 0:02:18.5]} 16. cxd5 {[%clk 0:02:05]} 16... Qd8 {[%clk 0:02:04.1]}
17. Nc6 {[%clk 0:01:41]} 17... Bxc6 {[%clk 0:02:03.9]} 18. dxc6 {[%clk
0:01:41.9]} 18... Nc5 {[%clk 0:02:03.1]} 19. Qc2 {[%clk 0:01:21.9]} 19... Qc7
{[%clk 0:01:49]} 20. b4 {[%clk 0:01:18]} 20... Ne6 {[%clk 0:01:40.5]} 21. f5
{[%clk 0:01:10.1]} 21... Nd8 {[%clk 0:01:39.2]} 22. a4 {[%clk 0:01:09.9]} 22...
b5 {[%clk 0:01:27.2]} 23. a5 {[%clk 0:01:09.8]} 23... Rc8 {[%clk 0:01:27.1]} 24.
e5 {[%clk 0:00:48]} 24... dxe5 {[%clk 0:01:26.1]} 25. Bb6 {[%clk 0:00:47.2]}
25... Qd6 {[%clk 0:01:25.1]} 26. Bc5 {[%clk 0:00:43.6]} 26... Qc7 {[%clk
0:01:25.1]} 27. Bb6 {[%clk 0:00:35.7]} 27... Qd6 {[%clk 0:00:56]} 28. c7 {[%clk
0:00:35.3]} 28... e4 {[%clk 0:00:39.2]} 29. Bxe4 {[%clk 0:00:27.9]} 29... Qxb4
{[%clk 0:00:39.2]} 30. cxd8=Q {[%clk 0:00:19.2]} 30... Bxd8 {[%clk 0:00:38.8]}
31. Qxc8 {[%clk 0:00:14.8]} 31... Bxb6+ {[%clk 0:00:38.7]} 32. axb6 {[%clk
0:00:15.7]} 32... Nxe4 {[%clk 0:00:15.9]} 33. b7 {[%clk 0:00:10.1]} 33... Qd4+
{[%clk 0:00:15.6]} 34. Kh2 {[%clk 0:00:08.6]} 34... Qd6+ {[%clk 0:00:15.2]} 35.
Kh1 {[%clk 0:00:07.6]} 35... Ng3+ {[%clk 0:00:15]} 36. Kg1 {[%clk 0:00:07.8]}
36... Qd4+ {[%clk 0:00:14.7]} 37. Kh2 {[%clk 0:00:07.9]} 37... Nxf1+ {[%clk
0:00:14]} 38. Rxf1 {[%clk 0:00:08.7]} 38... Qd6+ {[%clk 0:00:12.5]} 39. Kh1
{[%clk 0:00:08.7]} 39... h6 {[%clk 0:00:09.4]} 40. Re1 {[%clk 0:00:08.7]} 40...
Rxc8 {[%clk 0:00:06.2]} 41. bxc8=Q+ {[%clk 0:00:08.1]} 41... Kh7 {[%clk
0:00:07.1]} 42. Qc2 {[%clk 0:00:08.1]} 42... f6 {[%clk 0:00:06.8]} 43. Qe4
{[%clk 0:00:07.4]} 43... h5 {[%clk 0:00:06]} 44. Qh4 {[%clk 0:00:06.9]} 44...
Kh6 {[%clk 0:00:06.3]} 45. Rf1 {[%clk 0:00:06.6]} 45... Qd3 {[%clk 0:00:05.5]}
46. Qf4+ {[%clk 0:00:06.2]} 46... Kh7 {[%clk 0:00:05.6]} 47. Re1 {[%clk
0:00:07.1]} 47... a5 {[%clk 0:00:04.8]} 48. Qf3 {[%clk 0:00:05.4]} 48... Qxf3
{[%clk 0:00:02.5]} 49. gxf3 {[%clk 0:00:06.3]} 49... Kh6 {[%clk 0:00:03]} 50. h4
{[%clk 0:00:05.4]} 50... g6 {[%clk 0:00:02.7]} 51. Rb1 {[%clk 0:00:03.9]} 51...
b4 {[%clk 0:00:02.4]} 52. Ra1 {[%clk 0:00:04.3]} 52... gxf5 {[%clk 0:00:01.1]}
53. f4 {[%clk 0:00:04.2]} 53... Kg6 {[%clk 0:00:02]} 54. Rxa5 {[%clk 0:00:04.2]}
54... Kf7 {[%clk 0:00:02.9]} 55. Rb5 {[%clk 0:00:04.7]} 55... Ke6 {[%clk
0:00:03.8]} 56. Rxb4 {[%clk 0:00:05.6]} 56... Kd5 {[%clk 0:00:03.9]} 57. Kg2
{[%clk 0:00:04.8]} 57... Kc5 {[%clk 0:00:04.8]} 58. Ra4 {[%clk 0:00:04.1]} 58...
Kd5 {[%clk 0:00:05.3]} 59. Kf3 {[%clk 0:00:03.5]} 59... Kc5 {[%clk 0:00:06.2]}
60. Ra5+ {[%clk 0:00:03.8]} 60... Kd4 {[%clk 0:00:06.3]} 61. Rxf5 {[%clk
0:00:04.7]} 61... Kd3 {[%clk 0:00:06]} 62. Rxf6 {[%clk 0:00:04.8]} 62... Kd2
{[%clk 0:00:06.5]} 63. Rd6+ {[%clk 0:00:04.6]} 63... Ke1 {[%clk 0:00:07.4]} 64.
f5 {[%clk 0:00:04.5]} 64... Kf1 {[%clk 0:00:06.6]} 65. Rd1# {[%clk 0:00:05.4]}
1-0